[Event "DLM Youth 2024"]
[Site "Tuebingen"]
[Date "2024.10.03"]
[Round "1"]
[White "Steinbrenner, Peter"]
[Black "Fischermann, Simon"]
[Result "1-0"]
[ECO "C95"]
[WhiteElo "1952"]
[BlackElo "1873"]
[Annotator "RC"]
[PlyCount "77"]
[EventDate "2024.10.03"]
[EventType "team-swiss"]
[EventRounds "7"]
[EventCountry "GER"]
[SourceTitle "playchess.com"]
[Source "ChessBase"]
[SourceQuality "1"]
[TimeControl "40/5400+30:1800+30"]

1. e4 {[%emt 0:00:06]} e5 {[%emt 0:00:01]} 2. Nf3 {[%emt 0:00:21]} Nc6 {[%emt 0:00:02]} 3. Bb5 {[%emt 0:00:31]} a6 {[%emt 0:00:05]} 4. Ba4 {[%emt 0:00:14]} Nf6 {[%emt 0:00:05]} 5. O-O {[%emt 0:00:21]} Be7 {[%emt 0:00:57]} 6. Re1 {[%emt 0:00:11]} b5 {[%emt 0:00:35]} 7. Bb3 {[%emt 0:00:07]} d6 {[%emt 0:00:03]} 8. c3 {[%emt 0:00:49]} O-O {[%emt 0:00:08]} 9. h3 {[%emt 0:00:26]} Nb8 {[%emt 0:00:10]} 10. d4 {[%emt 0:00:39]} Nbd7 {[%emt 0:00:02]} 11. Nbd2 {[%emt 0:00:43]} Bb7 {[%emt 0:00:36]} 12. Bc2 {[%emt 0:01:02]} Re8 {[%emt 0:00:10]} 13. Nf1 {[%emt 0:01:25]} Bf8 {[%emt 0:03:58]} 14. Ng3 {[%emt 0:00:33]} g6 {[%emt 0:00:09]} 15. a4 {[%emt 0:03:41]} c5 {[%emt 0:00:57]} 16. Bg5 {[%emt 0:06:01]} h6 {[%emt 0:00:07]} 17. dxe5 {[%emt 0:08:49]} hxg5 {[%emt 0:02:12]} 18. exf6 {[%emt 0:00:20]} Qxf6 {[%emt 0:00:17]} 19. Qd2 {[%emt 0:08:29]} Bh6 {[%emt 0:10:14]} 20. Nh2 {[%emt 0:07:24]} Ne5 {[%emt 0:00:31]} 21. Qe2 {[%emt 0:00:56]} c4 {[%emt 0:02:06]} 22. Ng4 {[%emt 0:01:07]} Nxg4 {[%emt 0:00:05]} 23. Qxg4 {[%emt 0:00:11]} Rad8 {[%emt 0:05:15]} 24. Ne2 {[%emt 0:05:27]} Qe6 {[%emt 0:03:13]} 25. Qxe6 {[%emt 0:03:15]} Rxe6 {[%emt 0:00:30]} 26. Nd4 {[%emt 0:00:12]} Re5 {[%emt 0:00:12]} 27. axb5 {[%emt 0:01:41]} axb5 {[%emt 0:00:16]} 28. Ra5 {[%emt 0:02:50]} b4 {[%emt 0:02:21]} 29. Ra7 {[%emt 0:04:33]} Rb8 {[%emt 0:03:03]} 30. cxb4 {[%emt 0:06:09]} Bg7 {[%emt 0:06:19]} 31. Kf1 {[%emt 0:07:38]} Bf6 {[%emt 0:06:01]} 32. b3 {[%emt 0:02:13]} c3 {[%emt 0:02:43]} 33. Re3 {[%emt 0:02:51]} Ree8 {[%emt 0:08:07]} 34. Nb5 {[%emt 0:09:46]} Rxe4 {[%emt 0:15:43]} 35. Bxe4 {[%emt 0:08:35]} Bxe4 {[%emt 0:00:37]} 36. Nxc3 {[%emt 0:01:43]} Bd4 {[%emt 0:01:33]} 37. Ra6 {[%emt 0:03:15]} Bxe3 {[%emt 0:01:40]} 38. Nxe4 {[%emt 0:00:26]} Rxb4 {[%emt 0:00:34]} 39. Nf6+ {[%emt 0:00:34]} 1-0

[Event "DLM Youth 2024"]
[Site "Tuebingen"]
[Date "2024.10.03"]
[Round "1"]
[White "Sickmann, Lisa"]
[Black "Wartenberg, Alissa"]
[Result "1-0"]
[ECO "C77"]
[WhiteElo "1946"]
[BlackElo "1813"]
[Annotator "RC"]
[PlyCount "73"]
[EventDate "2024.10.03"]
[EventType "team-swiss"]
[EventRounds "7"]
[EventCountry "GER"]
[SourceTitle "playchess.com"]
[Source "ChessBase"]
[SourceQuality "1"]
[TimeControl "40/5400+30:1800+30"]

1. e4 {[%emt 0:00:13]} e5 {[%emt 0:00:21]} 2. Nf3 {[%emt 0:00:06]} Nc6 {[%emt 0:00:04]} 3. Bb5 {[%emt 0:00:03]} a6 {[%emt 0:00:05]} 4. Ba4 {[%emt 0:00:03]} Nf6 {[%emt 0:00:07]} 5. d3 {[%emt 0:00:04]} d6 {[%emt 0:01:07]} 6. c3 {[%emt 0:00:14]} Be7 {[%emt 0:01:13]} 7. O-O {[%emt 0:00:17]} O-O {[%emt 0:02:11]} 8. Nbd2 {[%emt 0:00:06]} Re8 {[%emt 0:06:16]} 9. Re1 {[%emt 0:00:17]} Bf8 {[%emt 0:02:39]} 10. Nf1 {[%emt 0:00:14]} b5 {[%emt 0:00:18]} 11. Bc2 {[%emt 0:00:16]} Ne7 {[%emt 0:11:08]} 12. h3 {[%emt 0:03:45]} c5 {[%emt 0:05:11]} 13. Ng3 {[%emt 0:00:51]} Ng6 {[%emt 0:06:39]} 14. d4 {[%emt 0:01:36]} Qc7 {[%emt 0:04:07]} 15. a4 {[%emt 0:02:52]} Bb7 {[%emt 0:03:10]} 16. Bg5 {[%emt 0:02:52]} Nd7 {[%emt 0:04:46]} 17. h4 {[%emt 0:12:29]} Ne7 {[%emt 0:08:53]} 18. h5 {[%emt 0:03:43]} h6 {[%emt 0:01:46]} 19. Be3 {[%emt 0:01:36]} Nf6 {[%emt 0:02:22]} 20. Nh4 {[%emt 0:05:33]} exd4 {[%emt 0:11:55]} 21. cxd4 {[%emt 0:01:31]} Nc6 {[%emt 0:01:35]} 22. Nhf5 {[%emt 0:02:54]} Nb4 {[%emt 0:04:06]} 23. d5 {[%emt 0:05:21]} Nxc2 {[%emt 0:01:10]} 24. Qxc2 {[%emt 0:00:07]} Bc8 {[%emt 0:02:27]} 25. axb5 {[%emt 0:04:49]} Bxf5 {[%emt 0:00:31]} 26. Nxf5 {[%emt 0:00:12]} Nxe4 {[%emt 0:09:23]} 27. Rxa6 {[%emt 0:04:28]} Rxa6 {[%emt 0:00:52]} 28. bxa6 {[%emt 0:00:06]} Qc8 {[%emt 0:01:06]} 29. Qa4 {[%emt 0:01:41]} Nf6 {[%emt 0:01:46]} 30. a7 {[%emt 0:03:42]} Nxd5 {[%emt 0:01:37]} 31. Ra1 {[%emt 0:07:16]} Nc7 {[%emt 0:00:25]} 32. Qg4 {[%emt 0:09:18]} Kh8 {[%emt 0:02:11]} 33. Ra3 {[%emt 0:00:48]} Re5 {[%emt 0:03:58]} 34. Nxh6 {[%emt 0:00:17]} Qxg4 {[%emt 0:00:05]} 35. Nxg4 {[%emt 0:00:07]} Re8 {[%emt 0:00:05]} 36. Rb3 {[%emt 0:00:17]} Na8 {[%emt 0:00:37]} 37. Rb8 {[%emt 0:00:06]} 1-0

[Event "DLM Youth 2024"]
[Site "Tuebingen"]
[Date "2024.10.03"]
[Round "1"]
[White "Bezsonna, Polina"]
[Black "Roessling, Laura Marie"]
[Result "1-0"]
[ECO "C54"]
[WhiteElo "1905"]
[BlackElo "1624"]
[Annotator "RC"]
[PlyCount "57"]
[EventDate "2024.10.03"]
[EventType "team-swiss"]
[EventRounds "7"]
[EventCountry "GER"]
[SourceTitle "playchess.com"]
[Source "ChessBase"]
[SourceQuality "1"]
[TimeControl "40/5400+30:1800+30"]

1. e4 {[%emt 0:00:01]} e5 {[%emt 0:00:14]} 2. Nf3 {[%emt 0:00:09]} Nc6 {[%emt 0:00:21]} 3. Bc4 {[%emt 0:00:09]} Bc5 {[%emt 0:00:28]} 4. c3 {[%emt 0:00:04]} Nf6 {[%emt 0:00:40]} 5. d4 {[%emt 0:00:09]} exd4 {[%emt 0:00:14]} 6. e5 {[%emt 0:00:05]} d5 {[%emt 0:01:54]} 7. Bb5 {[%emt 0:00:12]} Ne4 {[%emt 0:00:50]} 8. cxd4 {[%emt 0:00:15]} Bb6 {[%emt 0:00:41]} 9. Nc3 {[%emt 0:00:20]} Bg4 {[%emt 0:00:30]} 10. Be3 {[%emt 0:03:08]} O-O {[%emt 0:02:34]} 11. h3 {[%emt 0:00:16]} Bh5 {[%emt 0:02:02]} 12. Qc2 {[%emt 0:00:22]} Nxc3 {[%emt 0:02:42]} 13. bxc3 {[%emt 0:00:12]} f6 {[%emt 0:01:46]} 14. exf6 {[%emt 0:00:48]} Rxf6 {[%emt 0:18:47]} 15. Be2 {[%emt 0:05:05]} Qd7 {[%emt 0:12:19]} 16. O-O {[%emt 0:04:02]} Bg6 {[%emt 0:07:46]} 17. Qd2 {[%emt 0:15:57]} Raf8 {[%emt 0:09:02]} 18. Ne5 {[%emt 0:02:54]} Nxe5 {[%emt 0:05:36]} 19. dxe5 {[%emt 0:00:25]} Bxe3 {[%emt 0:03:08]} 20. Qxe3 {[%emt 0:01:08]} Rb6 {[%emt 0:00:31]} 21. Rad1 {[%emt 0:04:03]} Bf5 {[%emt 0:05:43]} 22. g4 {[%emt 0:04:20]} Be6 {[%emt 0:06:12]} 23. f4 {[%emt 0:02:26]} Qe7 {[%emt 0:02:31]} 24. f5 {[%emt 0:03:52]} Bf7 {[%emt 0:01:59]} 25. e6 {[%emt 0:02:11]} Be8 {[%emt 0:02:39]} 26. Rxd5 {[%emt 0:02:00]} g6 {[%emt 0:06:09]} 27. Bc4 {[%emt 0:09:54]} gxf5 {[%emt 0:04:02]} 28. Rd7 {[%emt 0:01:40]} Qf6 {[%emt 0:02:18]} 29. Rxf5 {[%emt 0:07:23]} 1-0

[Event "DLM Youth 2024"]
[Site "Tuebingen"]
[Date "2024.10.03"]
[Round "1"]
[White "Schulz, Tim"]
[Black "Nunez Gregoire, Daniel"]
[Result "1-0"]
[ECO "D04"]
[WhiteElo "1901"]
[BlackElo "2154"]
[Annotator "RC"]
[PlyCount "105"]
[EventDate "2024.10.03"]
[EventType "team-swiss"]
[EventRounds "7"]
[EventCountry "GER"]
[SourceTitle "playchess.com"]
[Source "ChessBase"]
[SourceQuality "1"]
[TimeControl "40/5400+30:1800+30"]

1. d4 {[%emt 0:00:06]} d5 {[%emt 0:00:02]} 2. Nf3 {[%emt 0:00:13]} Nf6 {[%emt 0:00:02]} 3. e3 {[%emt 0:00:07]} c5 {[%emt 0:01:21]} 4. dxc5 {[%emt 0:00:10]} e6 {[%emt 0:00:26]} 5. b4 {[%emt 0:00:22]} a5 {[%emt 0:00:31]} 6. c3 {[%emt 0:00:09]} b6 {[%emt 0:02:13]} 7. Bb5+ {[%emt 0:10:01]} Bd7 {[%emt 0:00:25]} 8. Bxd7+ {[%emt 0:01:10]} Nfxd7 {[%emt 0:00:32]} 9. cxb6 {[%emt 0:08:13]} axb4 {[%emt 0:00:39]} 10. O-O {[%emt 0:12:50]} Qxb6 {[%emt 0:01:31]} 11. Bb2 {[%emt 0:03:28]} f6 {[%emt 0:02:24]} 12. Nh4 {[%emt 0:02:51]} g6 {[%emt 0:02:14]} 13. Qf3 {[%emt 0:05:11]} Bg7 {[%emt 0:01:28]} 14. c4 {[%emt 0:02:23]} Ra5 {[%emt 0:06:02]} 15. Nd2 {[%emt 0:04:10]} Ne5 {[%emt 0:05:24]} 16. Bxe5 {[%emt 0:06:46]} fxe5 {[%emt 0:00:20]} 17. e4 {[%emt 0:05:32]} d4 {[%emt 0:02:17]} 18. Rfb1 {[%emt 0:05:55]} Nc6 {[%emt 0:03:19]} 19. Qh3 {[%emt 0:04:37]} Ke7 {[%emt 0:01:18]} 20. Nb3 {[%emt 0:04:14]} Ra3 {[%emt 0:01:08]} 21. Nf3 {[%emt 0:00:39]} Bf6 {[%emt 0:08:49]} 22. Ne1 {[%emt 0:01:51]} Na5 {[%emt 0:14:23]} 23. Nc2 {[%emt 0:02:37]} Ra4 {[%emt 0:01:31]} 24. Nxa5 {[%emt 0:01:18]} Qxa5 {[%emt 0:01:39]} 25. Qb3 {[%emt 0:00:29]} Kf7 {[%emt 0:01:44]} 26. Nxb4 {[%emt 0:03:46]} Rb8 {[%emt 0:01:32]} 27. a3 {[%emt 0:00:40]} Qa8 {[%emt 0:00:37]} 28. Qd1 {[%emt 0:04:31]} Rxa3 {[%emt 0:01:14]} 29. Rxa3 {[%emt 0:04:31]} Qxa3 {[%emt 0:00:08]} 30. Nd3 {[%emt 0:00:36]} Rxb1 {[%emt 0:03:30]} 31. Qxb1 {[%emt 0:00:06]} Qc3 {[%emt 0:03:23]} 32. c5 {[%emt 0:01:35]} g5 {[%emt 0:05:27]} 33. h3 {[%emt 0:01:19]} Qc4 {[%emt 0:03:26]} 34. Qb7+ {[%emt 0:01:33]} Kf8 {[%emt 0:10:36]} 35. c6 {[%emt 0:00:50]} Bd8 {[%emt 0:03:35]} 36. Qd7 {[%emt 0:00:50]} Ba5 {[%emt 0:01:16]} 37. Qd6+ {[%emt 0:00:41]} Ke8 {[%emt 0:02:31]} 38. Qxe5 {[%emt 0:01:26]} Qxd3 {[%emt 0:05:36]} 39. Qxe6+ {[%emt 0:00:10]} Kf8 {[%emt 0:00:17]} 40. Qf6+ {[%emt 0:00:48]} Ke8 {[%emt 0:00:16]} 41. Qe5+ {[%emt 0:31:39]} Kf7 {[%emt 0:05:42]} 42. Qf5+ {[%emt 0:00:00]} Ke7 {[%emt 0:01:29]} 43. Qxa5 {[%emt 0:00:00]} Qb1+ {[%emt 0:24:43]} 44. Kh2 {[%emt 0:00:00]} Qxe4 {[%emt 0:01:36]} 45. Qc7+ {[%emt 0:00:00]} Kf8 {[%emt 0:02:46]} 46. Qd6+ {[%emt 0:00:00]} Qe7 {[%emt 0:00:51]} 47. Qxd4 {[%emt 0:00:00]} Qc7+ {[%emt 0:00:48]} 48. g3 {[%emt 0:00:00]} Qxc6 {[%emt 0:00:38]} 49. Qh8+ {[%emt 0:00:00]} Kf7 {[%emt 0:00:36]} 50. Qxh7+ {[%emt 0:00:00]} Kf8 {[%emt 0:00:06]} 51. Qf5+ {[%emt 0:00:00]} Ke8 {[%emt 0:00:02]} 52. Qxg5 {[%emt 0:00:00]} Qf3 {[%emt 0:00:05]} 53. Qe3+ {[%emt 0:00:00]} 1-0

[Event "DLM Youth 2024"]
[Site "Tuebingen"]
[Date "2024.10.03"]
[Round "1"]
[White "Brunner, Sophia"]
[Black "Huppert, Anna"]
[Result "1-0"]
[ECO "D02"]
[WhiteElo "1863"]
[BlackElo "1661"]
[Annotator "NA RC"]
[PlyCount "104"]
[EventDate "2024.10.03"]
[EventType "team-swiss"]
[EventRounds "7"]
[EventCountry "GER"]
[SourceTitle "playchess.com"]
[Source "ChessBase"]
[SourceQuality "1"]
[TimeControl "40/5400+30:1800+30"]

1. d4 {[%emt 0:00:03]} Nf6 {[%emt 0:00:06]} 2. Nf3 {[%emt 0:00:10]} e6 {[%emt 0:00:14]} 3. g3 {[%emt 0:00:23]} d5 {[%emt 0:01:19]} 4. Bg2 {[%emt 0:00:25]} c5 {[%emt 0:07:26]} 5. e3 {[%emt 0:05:42]} Nc6 {[%emt 0:05:40]} 6. O-O {[%emt 0:00:21]} Bd6 {[%emt 0:09:01]} 7. dxc5 {[%emt 0:05:37]} Bxc5 {[%emt 0:00:19]} 8. b3 {[%emt 0:00:12]} e5 {[%emt 0:04:54]} 9. Bb2 {[%emt 0:03:24]} Qe7 {[%emt 0:23:16]} 10. Nbd2 {[%emt 0:04:03]} Bg4 {[%emt 0:03:39]} 11. Qe1 {[%emt 0:01:38]} e4 {[%emt 0:07:19]} 12. Nd4 {[%emt 0:00:26]} Nxd4 {[%emt 0:01:26]} 13. exd4 {[%emt 0:02:11]} Bb4 {[%emt 0:03:53]} 14. c3 {[%emt 0:02:12]} Ba5 {[%emt 0:01:59]} 15. h3 {[%emt 0:03:08]} Bh5 {[%emt 0:08:31]} 16. a3 {[%emt 0:04:11]} O-O {[%emt 0:02:39]} 17. b4 {[%emt 0:04:09]} Bb6 {[%emt 0:00:25]} 18. c4 {[%emt 0:01:52]} Bg6 {[%emt 0:02:13]} 19. c5 {[%emt 0:08:09]} Bc7 {[%emt 0:00:41]} 20. Qe3 {[%emt 0:01:45]} Nd7 {[%emt 0:06:25]} 21. Kh2 {[%emt 0:07:36]} f5 {[%emt 0:01:27]} 22. f4 {[%emt 0:01:00]} Rae8 {[%emt 0:00:53]} 23. Rfc1 {[%emt 0:03:34]} Rf6 {[%emt 0:02:58]} 24. Qb3 {[%emt 0:04:47]} Bf7 {[%emt 0:00:21]} 25. Nf1 {[%emt 0:01:16]} Rg6 {[%emt 0:01:46]} 26. Qe3 {[%emt 0:09:42]} Qe6 {[%emt 0:01:29]} 27. b5 {[%emt 0:03:39]} Nf6 {[%emt 0:01:47]} 28. a4 {[%emt 0:01:57]} Rc8 {[%emt 0:00:43]} 29. Bc3 {[%emt 0:04:03]} Be8 {[%emt 0:00:56]} 30. Be1 {[%emt 0:01:26]} Rh6 {[%emt 0:00:24]} 31. Kg1 {[%emt 0:00:28]} Bd8 {[%emt 0:00:59]} 32. Qf2 {[%emt 0:06:05]} Kh8 {[%emt 0:00:38]} 33. Ne3 {[%emt 0:01:56]} Ng8 {[%emt 0:00:28]} 34. Bf1 {[%emt 0:04:16]} Bf6 {[%emt 0:00:32]} 35. Rd1 {[%emt 0:03:16]} Ne7 {[%emt 0:00:27]} 36. a5 {[%emt 0:01:45]} g5 {[%emt 0:00:19]} 37. fxg5 {[%emt 0:00:59]} Bxg5 {[%emt 0:00:03]} 38. h4 {[%emt 0:00:20]} Bf6 {[%emt 0:00:48]} 39. a6 {[%emt 0:01:17]} b6 {[%emt 0:00:31]} 40. c6 {[%emt 0:00:14]} Rg6 {[%emt 0:00:14]} 41. Qf4 {[%emt 0:30:27]} Rg7 {[%emt 0:03:03]} 42. Kh2 {[%emt 0:00:00]} Bh5 {[%emt 0:08:05]} 43. Rd2 {[%emt 0:00:00]} Bg4 {[%emt 0:02:25]} 44. Nxg4 {[%emt 0:00:00]} Rxg4 {[%emt 0:01:13]} 45. Qe3 {[%emt 0:00:00]} Qd6 {[%emt 0:03:01]} 46. Kh1 {[%emt 0:00:00]} f4 {[%emt 0:01:33]} 47. gxf4 {[%emt 0:00:00]} Rxf4 {[%emt 0:00:20]} 48. Bg3 {[%emt 0:00:00]} Rxh4+ {[%emt 0:07:51]} 49. Bxh4 {[%emt 0:00:00]} Bxh4 {[%emt 0:00:07]} 50. Bh3 {[%emt 0:00:00]} Rf8 {[%emt 0:01:44]} 51. Bg4 {[%emt 0:00:00]} Nf5 {[%emt 0:04:14]} 52. Bxf5 {[%emt 0:00:00]} Rxf5 {[%emt 0:00:04]} 1-0

[Event "DLM Youth 2024"]
[Site "Tuebingen"]
[Date "2024.10.03"]
[Round "1"]
[White "Kateryniuk, Ivan"]
[Black "Bauer, Laura Sophie"]
[Result "1-0"]
[ECO "B02"]
[WhiteElo "1860"]
[BlackElo "1943"]
[Annotator "RC"]
[PlyCount "59"]
[EventDate "2024.10.03"]
[EventType "team-swiss"]
[EventRounds "7"]
[EventCountry "GER"]
[SourceTitle "playchess.com"]
[Source "ChessBase"]
[SourceQuality "1"]
[TimeControl "40/5400+30:1800+30"]

1. e4 {[%emt 0:00:09]} c5 {[%emt 0:00:06]} 2. c3 {[%emt 0:00:04]} Nf6 {[%emt 0:00:07]} 3. e5 {[%emt 0:00:03]} Nd5 {[%emt 0:00:04]} 4. d4 {[%emt 0:00:08]} cxd4 {[%emt 0:00:11]} 5. cxd4 {[%emt 0:00:11]} e6 {[%emt 0:00:23]} 6. Nc3 {[%emt 0:00:51]} d6 {[%emt 0:01:26]} 7. Nxd5 {[%emt 0:01:17]} exd5 {[%emt 0:00:28]} 8. Nf3 {[%emt 0:01:05]} Nc6 {[%emt 0:01:33]} 9. Bd3 {[%emt 0:01:59]} dxe5 {[%emt 0:02:45]} 10. dxe5 {[%emt 0:03:40]} Bb4+ {[%emt 0:07:50]} 11. Bd2 {[%emt 0:00:50]} Bxd2+ {[%emt 0:01:18]} 12. Qxd2 {[%emt 0:00:06]} O-O {[%emt 0:00:51]} 13. O-O {[%emt 0:22:29]} Bg4 {[%emt 0:14:34]} 14. Qf4 {[%emt 0:03:52]} Bxf3 {[%emt 0:02:53]} 15. Qxf3 {[%emt 0:00:37]} g6 {[%emt 0:09:24]} 16. Qg3 {[%emt 0:14:58]} Qb6 {[%emt 0:07:27]} 17. Kh1 {[%emt 0:06:44]} Qxb2 {[%emt 0:11:45]} 18. f4 {[%emt 0:00:20]} Qd4 {[%emt 0:09:53]} 19. Rad1 {[%emt 0:01:27]} Qb6 {[%emt 0:03:26]} 20. f5 {[%emt 0:06:17]} Qc7 {[%emt 0:08:49]} 21. Rde1 {[%emt 0:08:08]} Rae8 {[%emt 0:00:00]} 22. f6 {[%emt 0:00:27]} Rxe5 {[%emt 0:00:00]} 23. Qf4 {[%emt 0:00:19]} Kh8 {[%emt 0:00:00]} 24. Re3 {[%emt 0:02:05]} g5 {[%emt 0:07:46]} 25. Qg3 {[%emt 0:01:03]} Rxe3 {[%emt 0:09:10]} 26. Qxc7 {[%emt 0:00:30]} Rxd3 {[%emt 0:00:06]} 27. Qxb7 {[%emt 0:00:51]} Rc3 {[%emt 0:00:30]} 28. h3 {[%emt 0:00:39]} h6 {[%emt 0:00:48]} 29. Qd7 {[%emt 0:01:15]} d4 {[%emt 0:00:48]} 30. Re1 {[%emt 0:00:35]} 1-0

[Event "DLM Youth 2024"]
[Site "Tuebingen"]
[Date "2024.10.03"]
[Round "1"]
[White "Wartenberg, Alexander"]
[Black "Braeutigam, Katerina"]
[Result "0-1"]
[ECO "B15"]
[WhiteElo "1857"]
[BlackElo "2099"]
[Annotator "RC"]
[PlyCount "64"]
[EventDate "2024.10.03"]
[EventType "team-swiss"]
[EventRounds "7"]
[EventCountry "GER"]
[SourceTitle "playchess.com"]
[Source "ChessBase"]
[SourceQuality "1"]
[TimeControl "40/5400+30:1800+30"]

1. e4 {[%emt 0:00:01]} c6 {[%emt 0:00:06]} 2. Nf3 {[%emt 0:00:05]} g6 {[%emt 0:00:05]} 3. d4 {[%emt 0:00:39]} Bg7 {[%emt 0:00:08]} 4. Nc3 {[%emt 0:00:26]} d5 {[%emt 0:04:00]} 5. Bd3 {[%emt 0:00:55]} Bg4 {[%emt 0:01:30]} 6. Be3 {[%emt 0:10:39]} dxe4 {[%emt 0:11:48]} 7. Bxe4 {[%emt 0:16:42]} f5 {[%emt 0:03:43]} 8. Bd3 {[%emt 0:04:35]} Bxf3 {[%emt 0:02:00]} 9. gxf3 {[%emt 0:08:13]} Bxd4 {[%emt 0:02:11]} 10. Bc4 {[%emt 0:08:21]} e5 {[%emt 0:18:05]} 11. f4 {[%emt 0:07:32]} Bxe3 {[%emt 0:03:53]} 12. Qxd8+ {[%emt 0:00:54]} Kxd8 {[%emt 0:00:10]} 13. fxe3 {[%emt 0:00:09]} exf4 {[%emt 0:04:27]} 14. O-O-O+ {[%emt 0:03:13]} Kc7 {[%emt 0:06:13]} 15. exf4 {[%emt 0:00:37]} Nd7 {[%emt 0:01:16]} 16. Rhe1 {[%emt 0:06:21]} Ngf6 {[%emt 0:01:57]} 17. Bf7 {[%emt 0:02:03]} Rhf8 {[%emt 0:12:45]} 18. Re7 {[%emt 0:02:32]} Kd8 {[%emt 0:01:33]} 19. Rde1 {[%emt 0:08:09]} Nc5 {[%emt 0:10:14]} 20. Bc4 {[%emt 0:07:05]} Re8 {[%emt 0:02:17]} 21. Rxe8+ {[%emt 0:00:51]} Nxe8 {[%emt 0:00:02]} 22. b4 {[%emt 0:00:40]} Nd7 {[%emt 0:01:23]} 23. Ne2 {[%emt 0:00:58]} Nb6 {[%emt 0:06:56]} 24. Bb3 {[%emt 0:01:32]} Nf6 {[%emt 0:01:49]} 25. Nd4 {[%emt 0:02:41]} Kd7 {[%emt 0:02:06]} 26. Ne6 {[%emt 0:04:07]} Re8 {[%emt 0:01:56]} 27. Nc5+ {[%emt 0:01:10]} Kc7 {[%emt 0:00:22]} 28. Ne6+ {[%emt 0:01:32]} Kc8 {[%emt 0:00:56]} 29. Rd1 {[%emt 0:01:25]} Nbd5 {[%emt 0:00:35]} 30. Bxd5 {[%emt 0:00:50]} Nxd5 {[%emt 0:00:10]} 31. Ng5 {[%emt 0:00:28]} Re7 {[%emt 0:00:41]} 32. Rd4 {[%emt 0:00:29]} h6 {[%emt 0:00:28]} 0-1

[Event "DLM Youth 2024"]
[Site "Tuebingen"]
[Date "2024.10.03"]
[Round "1"]
[White "Shevchenko, Igor"]
[Black "Stehning, Toni"]
[Result "1-0"]
[ECO "D34"]
[WhiteElo "1856"]
[BlackElo "1817"]
[Annotator "NA RC"]
[PlyCount "67"]
[EventDate "2024.10.03"]
[EventType "team-swiss"]
[EventRounds "7"]
[EventCountry "GER"]
[SourceTitle "playchess.com"]
[Source "ChessBase"]
[SourceQuality "1"]
[TimeControl "40/5400+30:1800+30"]

1. d4 {[%emt 0:00:16]} d5 {[%emt 0:00:06]} 2. c4 {[%emt 0:01:04]} e6 {[%emt 0:00:06]} 3. Nc3 {[%emt 0:02:13]} c5 {[%emt 0:00:09]} 4. cxd5 {[%emt 0:01:52]} exd5 {[%emt 0:00:12]} 5. Nf3 {[%emt 0:01:08]} Nc6 {[%emt 0:00:39]} 6. g3 {[%emt 0:09:19]} Nf6 {[%emt 0:02:03]} 7. Bg2 {[%emt 0:06:10]} Be7 {[%emt 0:02:13]} 8. O-O {[%emt 0:02:10]} O-O {[%emt 0:00:43]} 9. Bg5 {[%emt 0:21:40] 9.dxc5 is the modern continuation.} c4 {[%emt 0:02:10]} 10. Re1 {[%emt 0:19:06] D34: Tarrasch Defence: 6 g3 Nf6 7 Bg2 Be7.} (10. Ne5 $14 {might be stronger.}) 10... h6 {[%emt 0:09:12]} 11. Bxf6 {[%emt 0:07:31]} Bxf6 {[%emt 0:00:10]} 12. Qd2 {[%emt 0:03:46]} Re8 {[%emt 0:17:52]} 13. Rad1 {[%emt 0:01:34]} Bf5 {[%emt 0:04:38]} 14. a3 $146 {[%emt 0:07:20]} ({Predecessor:} 14. Ne5 Nxd4 15. Qxd4 Bxe5 16. Qxd5 Qxd5 17. Bxd5 Be6 18. Bg2 g5 19. Rd2 Rad8 20. Red1 Rxd2 21. Rxd2 b5 22. a3 Rb8 23. Nd5 Bxd5 {½-½ Volke,K (2450)-Schiffer,K (2325) Groningen op 1995}) 14... Be4 {[%emt 0:04:32]} 15. e3 {[%emt 0:07:13]} Qd7 {[%emt 0:16:13]} 16. h4 {[%emt 0:03:07]} (16. Qc1 $14) 16... Rad8 {[%emt 0:01:04]} 17. Nxe4 {[%emt 0:01:25]} dxe4 {[%emt 0:00:21]} 18. Nh2 {[%emt 0:00:16]} g5 {[%emt 0:24:44]} 19. hxg5 {[%emt 0:00:44]} Bxg5 {[%emt 0:00:14]} 20. Qe2 {[%emt 0:01:19]} Qe6 {[%emt 0:00:23]} 21. Nf1 {[%emt 0:00:39]} b5 {[%emt 0:02:23]} 22. Nd2 {[%emt 0:00:59]} f5 {[%emt 0:01:07]} 23. Rc1 {[%emt 0:00:33]} Qg6 {[%emt 0:01:22]} 24. Red1 {[%emt 0:00:32]} Ne7 {[%emt 0:02:18]} 25. Nb1 {[%emt 0:00:33]} Nd5 {[%emt 0:01:32]} 26. Nc3 {[%emt 0:00:27]} Nxc3 {[%emt 0:02:06]} 27. Rxc3 {[%emt 0:00:06]} Qf7 {[%emt 0:01:51]} 28. a4 {[%emt 0:00:35]} a6 {[%emt 0:00:16]} 29. Bf1 {[%emt 0:00:35]} Rc8 {[%emt 0:00:29]} 30. axb5 axb5 {[%emt 0:00:14]} 31. Rdc1 $14 {[%emt 0:00:56]} ({White should play} 31. b3 $16) 31... Rc7 {[%emt 0:03:35]} 32. b3 {[%emt 0:00:22]} Rec8 {[%emt 0:00:40]} 33. bxc4 {[%emt 0:00:09]} Rxc4 {[%emt 0:00:42]} 34. Rxc4 {[%emt 0:00:19]} 1-0